[Event "*** Titled Tuesday Blitz"]
[Site "Chess.com"]
[Date "2020.12.01"]
[Round "11"]
[White "Deepweb2020"]
[Black "catzapto"]
[Result "1-0"]
[WhiteElo "2256"]
[BlackElo "2115"]
[TimeControl "180+1"]
[EndTime "12:03:49 PST"]
[Termination "Deepweb2020 won by checkmate"]

1. d4 {[%clk 0:03:00.9]} 1... Nf6 {[%clk 0:02:50.7]} 2. Bf4 {[%clk 0:03:01.3]}
2... e6 {[%clk 0:02:51.4]} 3. e3 {[%clk 0:03:01.3]} 3... d5 {[%clk 0:02:48.2]}
4. c3 {[%clk 0:03:00.9]} 4... Bd6 {[%clk 0:02:47.7]} 5. Bg3 {[%clk 0:03:00.8]}
5... O-O {[%clk 0:02:42.9]} 6. Nd2 {[%clk 0:03:00.6]} 6... c5 {[%clk 0:02:40.2]}
7. Ngf3 {[%clk 0:03:00]} 7... Nc6 {[%clk 0:02:40.1]} 8. Bb5 {[%clk 0:02:56.6]}
8... Re8 {[%clk 0:02:37.3]} 9. Bxc6 {[%clk 0:02:51.7]} 9... bxc6 {[%clk
0:02:38.2]} 10. Qa4 {[%clk 0:02:52.1]} 10... Bxg3 {[%clk 0:02:34.2]} 11. hxg3
{[%clk 0:02:49.7]} 11... Qb6 {[%clk 0:02:31.2]} 12. dxc5 {[%clk 0:02:44.6]}
12... Qxc5 {[%clk 0:02:30.9]} 13. Qh4 {[%clk 0:02:42.3]} 13... h6 {[%clk
0:02:24.8]} 14. g4 {[%clk 0:02:36.5]} 14... Ba6 {[%clk 0:02:20.7]} 15. g5 {[%clk
0:02:26.5]} 15... Qb5 {[%clk 0:02:21]} 16. Nd4 {[%clk 0:02:25.7]} 16... Qxb2
{[%clk 0:02:11.2]} 17. Rb1 {[%clk 0:02:19.7]} 17... Qxc3 {[%clk 0:02:08.9]} 18.
gxf6 {[%clk 0:02:14.8]} 18... Rab8 {[%clk 0:02:08.7]} 19. Rd1 {[%clk 0:02:02.8]}
19... Rb2 {[%clk 0:01:56.1]} 20. Qg4 {[%clk 0:01:38.9]} 20... g6 {[%clk
0:01:37.5]} 21. Rxh6 {[%clk 0:01:37.4]} 21... Rxd2 {[%clk 0:01:30.9]} 22. Rxg6+
{[%clk 0:01:33.1]} 22... Kf8 {[%clk 0:00:12.9]} 23. Rg8# {[%clk 0:01:30.7]} 1-0

[Event "*** Titled Tuesday Blitz"]
[Site "Chess.com"]
[Date "2020.12.01"]
[Round "11"]
[White "Gudmundur_Kjartansson"]
[Black "Massakru"]
[Result "1-0"]
[WhiteElo "2570"]
[BlackElo "2332"]
[TimeControl "180+1"]
[EndTime "12:03:51 PST"]
[Termination "Gudmundur_Kjartansson won by resignation"]

1. d4 {[%clk 0:03:00.9]} 1... d5 {[%clk 0:02:58.8]} 2. c4 {[%clk 0:03:01.3]}
2... c6 {[%clk 0:02:59.2]} 3. Nc3 {[%clk 0:03:01]} 3... Nf6 {[%clk 0:02:58.4]}
4. e3 {[%clk 0:03:01.2]} 4... e6 {[%clk 0:02:56.2]} 5. Nf3 {[%clk 0:03:01.4]}
5... Bd6 {[%clk 0:02:54.6]} 6. Bd3 {[%clk 0:02:56]} 6... dxc4 {[%clk 0:02:53.8]}
7. Bxc4 {[%clk 0:02:56.1]} 7... b5 {[%clk 0:02:54.2]} 8. Bd3 {[%clk 0:02:56.4]}
8... Nbd7 {[%clk 0:02:52.6]} 9. O-O {[%clk 0:02:56.6]} 9... Bb7 {[%clk
0:02:51.8]} 10. e4 {[%clk 0:02:55.7]} 10... e5 {[%clk 0:02:50.7]} 11. Bg5 {[%clk
0:02:53.3]} 11... a6 {[%clk 0:02:47.9]} 12. Qc2 {[%clk 0:02:48.3]} 12... O-O
{[%clk 0:02:46.3]} 13. Rad1 {[%clk 0:02:46.4]} 13... Qc7 {[%clk 0:02:42]} 14.
dxe5 {[%clk 0:02:43.7]} 14... Nxe5 {[%clk 0:02:42]} 15. Nxe5 {[%clk 0:02:43.4]}
15... Bxe5 {[%clk 0:02:41.6]} 16. f4 {[%clk 0:02:36.2]} 16... Bd4+ {[%clk
0:02:41.7]} 17. Kh1 {[%clk 0:02:36.5]} 17... Ng4 {[%clk 0:02:41.6]} 18. e5
{[%clk 0:01:43.8]} 18... h6 {[%clk 0:02:39.6]} 19. Bh7+ {[%clk 0:01:39.9]} 19...
Kh8 {[%clk 0:02:39.7]} 20. Rxd4 {[%clk 0:01:39.9]} 20... Ne3 {[%clk 0:02:35.5]}
21. Qd3 {[%clk 0:01:12.3]} 21... Nxf1 {[%clk 0:02:33.3]} 22. Bf5 {[%clk
0:01:07]} 22... c5 {[%clk 0:02:02.3]} 23. Rd7 {[%clk 0:01:03.4]} 23... Qb6
{[%clk 0:01:59.6]} 24. Bh4 {[%clk 0:00:57]} 24... Bc8 {[%clk 0:01:53.1]} 25. Rd6
{[%clk 0:00:34.5]} 25... Bxf5 {[%clk 0:01:51]} 26. Qxf5 {[%clk 0:00:34.6]} 26...
Qb7 {[%clk 0:01:33.7]} 27. Rxh6+ {[%clk 0:00:33.1]} 27... gxh6 {[%clk
0:01:21.8]} 28. Bf6+ {[%clk 0:00:32.9]} 28... Kg8 {[%clk 0:01:22.2]} 29. Qg4+
{[%clk 0:00:33.1]} 1-0

[Event "*** Titled Tuesday Blitz"]
[Site "Chess.com"]
[Date "2020.12.01"]
[Round "11"]
[White "anon219"]
[Black "Orest_Vovk"]
[Result "1-0"]
[WhiteElo "2761"]
[BlackElo "2577"]
[TimeControl "180+1"]
[EndTime "12:03:56 PST"]
[Termination "anon219 won by resignation"]

1. e4 {[%clk 0:03:00.9]} 1... Nc6 {[%clk 0:02:57.9]} 2. d4 {[%clk 0:02:59.5]}
2... e5 {[%clk 0:02:57.4]} 3. d5 {[%clk 0:02:59]} 3... Nce7 {[%clk 0:02:57.1]}
4. h4 {[%clk 0:02:57.8]} 4... h5 {[%clk 0:02:55.7]} 5. Bg5 {[%clk 0:02:52.4]}
5... Nf6 {[%clk 0:02:52.7]} 6. Nc3 {[%clk 0:02:48.6]} 6... Ng6 {[%clk
0:02:52.1]} 7. Nge2 {[%clk 0:02:45.4]} 7... Bc5 {[%clk 0:02:49.1]} 8. Ng3 {[%clk
0:02:42]} 8... d6 {[%clk 0:02:38.9]} 9. Na4 {[%clk 0:02:34]} 9... Bd4 {[%clk
0:02:17.5]} 10. c3 {[%clk 0:02:32.2]} 10... Bb6 {[%clk 0:02:09]} 11. Nxb6 {[%clk
0:02:31.1]} 11... axb6 {[%clk 0:02:09.9]} 12. Nxh5 {[%clk 0:02:31.5]} 12... Rxh5
{[%clk 0:00:52]} 13. Bxf6 {[%clk 0:02:26.2]} 13... Qxf6 {[%clk 0:00:51.8]} 14.
Qxh5 {[%clk 0:02:26]} 14... Bd7 {[%clk 0:00:49.9]} 15. Qg5 {[%clk 0:02:23.3]}
15... Ra4 {[%clk 0:00:47.9]} 16. f3 {[%clk 0:02:10.7]} 16... Qxg5 {[%clk
0:00:45.4]} 17. hxg5 {[%clk 0:02:11.6]} 17... b5 {[%clk 0:00:43.3]} 18. Kd2
{[%clk 0:02:07.9]} 18... b4 {[%clk 0:00:41.6]} 19. b3 {[%clk 0:02:04.2]} 19...
bxc3+ {[%clk 0:00:40.1]} 20. Kxc3 {[%clk 0:02:05.1]} 20... Ra5 {[%clk 0:00:35]}
21. g3 {[%clk 0:02:01.3]} 21... Rc5+ {[%clk 0:00:33.6]} 22. Kd2 {[%clk 0:01:57]}
22... Ra5 {[%clk 0:00:28.6]} 23. a4 {[%clk 0:01:55.6]} 23... c6 {[%clk
0:00:28.6]} 24. b4 {[%clk 0:01:53.2]} 24... Ra8 {[%clk 0:00:28.1]} 25. dxc6
{[%clk 0:01:47.9]} 25... bxc6 {[%clk 0:00:27.4]} 26. a5 {[%clk 0:01:45.5]} 26...
d5 {[%clk 0:00:24.9]} 27. exd5 {[%clk 0:01:42.9]} 27... cxd5 {[%clk 0:00:25]}
28. b5 {[%clk 0:01:42.2]} 28... e4 {[%clk 0:00:23.6]} 29. b6 {[%clk 0:01:39.7]}
29... Ne5 {[%clk 0:00:11.2]} 30. Rh8+ {[%clk 0:01:38.6]} 1-0

[Event "*** Titled Tuesday Blitz"]
[Site "Chess.com"]
[Date "2020.12.01"]
[Round "11"]
[White "anon102030"]
[Black "elohunter1999"]
[Result "0-1"]
[WhiteElo "2709"]
[BlackElo "2595"]
[TimeControl "180+1"]
[EndTime "12:04:04 PST"]
[Termination "elohunter1999 won by checkmate"]

1. e4 {[%clk 0:03:00.9]} 1... c5 {[%clk 0:02:58.8]} 2. Nc3 {[%clk 0:03:00.9]}
2... Nc6 {[%clk 0:02:58]} 3. g3 {[%clk 0:03:01.1]} 3... g6 {[%clk 0:02:57.5]} 4.
Bg2 {[%clk 0:03:01.1]} 4... Bg7 {[%clk 0:02:58.1]} 5. d3 {[%clk 0:03:01.3]} 5...
d6 {[%clk 0:02:58.1]} 6. Be3 {[%clk 0:03:01.7]} 6... e6 {[%clk 0:02:56.7]} 7.
Nf3 {[%clk 0:02:59.8]} 7... e5 {[%clk 0:02:46]} 8. O-O {[%clk 0:02:55.6]} 8...
Nge7 {[%clk 0:02:45.8]} 9. Nh4 {[%clk 0:02:52.5]} 9... O-O {[%clk 0:02:45.3]}
10. f4 {[%clk 0:02:52.2]} 10... f5 {[%clk 0:02:45.5]} 11. Qd2 {[%clk 0:02:49.9]}
11... Be6 {[%clk 0:02:33.7]} 12. Rae1 {[%clk 0:02:44.8]} 12... Qd7 {[%clk
0:02:33.1]} 13. exf5 {[%clk 0:02:35.4]} 13... Nxf5 {[%clk 0:02:32.5]} 14. Nxf5
{[%clk 0:02:35.8]} 14... Bxf5 {[%clk 0:02:30.9]} 15. fxe5 {[%clk 0:02:36.7]}
15... Nxe5 {[%clk 0:02:30.7]} 16. Bh6 {[%clk 0:02:33.2]} 16... Bh3 {[%clk
0:02:28]} 17. Bxg7 {[%clk 0:02:07.7]} 17... Kxg7 {[%clk 0:02:25.6]} 18. Ne4
{[%clk 0:02:03.1]} 18... Rae8 {[%clk 0:02:22]} 19. Nxd6 {[%clk 0:01:53.2]} 19...
Qxd6 {[%clk 0:02:13.8]} 20. Bxh3 {[%clk 0:01:32.2]} 20... Nf3+ {[%clk
0:02:13.4]} 21. Rxf3 {[%clk 0:01:29.6]} 21... Rxe1+ {[%clk 0:02:12.8]} 22. Qxe1
{[%clk 0:01:26.4]} 22... Rxf3 {[%clk 0:02:13]} 23. Bg2 {[%clk 0:01:12.2]} 23...
Qd4+ {[%clk 0:02:09.5]} 24. Kh1 {[%clk 0:01:11.3]} 24... Qe3 {[%clk 0:02:09.5]}
25. Qc3+ {[%clk 0:00:53.8]} 25... Rf6 {[%clk 0:02:09.2]} 26. h3 {[%clk
0:00:46.5]} 26... Qxg3 {[%clk 0:02:08.3]} 27. Qxc5 {[%clk 0:00:41.3]} 27... Rf2
{[%clk 0:01:56.6]} 28. Qd5 {[%clk 0:00:14.7]} 28... Re2 {[%clk 0:01:40.3]} 29.
Qxb7+ {[%clk 0:00:13.4]} 29... Kh6 {[%clk 0:01:40]} 30. Qf7 {[%clk 0:00:03.2]}
30... Qxg2# {[%clk 0:01:37.8]} 0-1

[Event "*** Titled Tuesday Blitz"]
[Site "Chess.com"]
[Date "2020.12.01"]
[Round "11"]
[White "GigaQuparadze"]
[Black "Hikaru"]
[Result "0-1"]
[WhiteElo "2925"]
[BlackElo "3191"]
[TimeControl "180+1"]
[EndTime "12:04:15 PST"]
[Termination "Hikaru won by resignation"]

1. e4 {[%clk 0:03:00.9]} 1... g6 {[%clk 0:02:58.2]} 2. d4 {[%clk 0:03:00.5]}
2... Bg7 {[%clk 0:02:58.7]} 3. Nc3 {[%clk 0:03:00.8]} 3... a6 {[%clk 0:02:58.7]}
4. Bg5 {[%clk 0:03:00.1]} 4... b5 {[%clk 0:02:57.3]} 5. Qd2 {[%clk 0:02:59.9]}
5... Bb7 {[%clk 0:02:55.3]} 6. f3 {[%clk 0:03:00.2]} 6... d6 {[%clk 0:02:55.2]}
7. a4 {[%clk 0:02:56.1]} 7... b4 {[%clk 0:02:53.1]} 8. Nce2 {[%clk 0:02:56.2]}
8... a5 {[%clk 0:02:50.7]} 9. c3 {[%clk 0:02:55.6]} 9... bxc3 {[%clk 0:02:51.1]}
10. bxc3 {[%clk 0:02:56.5]} 10... Nd7 {[%clk 0:02:51.5]} 11. Ng3 {[%clk
0:02:55.7]} 11... Ngf6 {[%clk 0:02:46]} 12. h4 {[%clk 0:02:55.3]} 12... h6
{[%clk 0:02:24]} 13. Be3 {[%clk 0:02:54.8]} 13... e6 {[%clk 0:02:24.4]} 14. Bb5
{[%clk 0:02:51.4]} 14... Qe7 {[%clk 0:02:21.6]} 15. N1e2 {[%clk 0:02:50.8]}
15... c6 {[%clk 0:02:19.5]} 16. Bd3 {[%clk 0:02:50.1]} 16... h5 {[%clk
0:02:13.8]} 17. Bg5 {[%clk 0:02:49.1]} 17... O-O {[%clk 0:02:13.8]} 18. Rb1
{[%clk 0:02:43.5]} 18... Rfb8 {[%clk 0:02:08.5]} 19. O-O {[%clk 0:02:41.9]}
19... Qe8 {[%clk 0:02:06.2]} 20. Rb2 {[%clk 0:02:37]} 20... Ba6 {[%clk
0:01:59.8]} 21. Rfb1 {[%clk 0:02:36.4]} 21... Rxb2 {[%clk 0:01:59.5]} 22. Rxb2
{[%clk 0:02:36]} 22... Qc8 {[%clk 0:01:55.8]} 23. c4 {[%clk 0:02:31.5]} 23... c5
{[%clk 0:01:55.2]} 24. d5 {[%clk 0:02:16.1]} 24... Ne5 {[%clk 0:01:48.6]} 25.
Rc2 {[%clk 0:02:10.5]} 25... exd5 {[%clk 0:01:44.2]} 26. exd5 {[%clk 0:02:10.2]}
26... Nxd3 {[%clk 0:01:27.7]} 27. Qxd3 {[%clk 0:02:11.1]} 27... Nd7 {[%clk
0:01:28.3]} 28. Ne4 {[%clk 0:02:05.9]} 28... Ne5 {[%clk 0:01:28.2]} 29. Qd2
{[%clk 0:02:02.5]} 29... Nxc4 {[%clk 0:01:16.2]} 30. Rxc4 {[%clk 0:01:54.7]}
30... Bxc4 {[%clk 0:01:16.1]} 31. Nf6+ {[%clk 0:01:55.1]} 31... Bxf6 {[%clk
0:01:06.4]} 32. Bxf6 {[%clk 0:01:56]} 32... Qf5 {[%clk 0:01:06.7]} 33. Bb2
{[%clk 0:01:45.7]} 33... Bxe2 {[%clk 0:01:04.5]} 34. Qxe2 {[%clk 0:01:45.9]}
34... Rb8 {[%clk 0:01:00.2]} 35. Bc3 {[%clk 0:01:41]} 35... Qf4 {[%clk
0:00:57.3]} 36. Qd3 {[%clk 0:01:11.4]} 36... Rb3 {[%clk 0:00:49.7]} 37. Kf2
{[%clk 0:00:59.2]} 37... Qc1 {[%clk 0:00:47.3]} 0-1

[Event "*** Titled Tuesday Blitz"]
[Site "Chess.com"]
[Date "2020.12.01"]
[Round "11"]
[White "maheswaran26"]
[Black "Bodnar_Mykola"]
[Result "1-0"]
[WhiteElo "2255"]
[BlackElo "2374"]
[TimeControl "180+1"]
[EndTime "12:04:30 PST"]
[Termination "maheswaran26 won by resignation"]

1. d4 {[%clk 0:02:59.3]} 1... Nf6 {[%clk 0:02:59.4]} 2. Nf3 {[%clk 0:02:58.6]}
2... g6 {[%clk 0:02:59.5]} 3. c4 {[%clk 0:02:57.9]} 3... Bg7 {[%clk 0:02:59.8]}
4. Nc3 {[%clk 0:02:57.8]} 4... O-O {[%clk 0:03:00.3]} 5. e4 {[%clk 0:02:57.7]}
5... d6 {[%clk 0:03:00.9]} 6. h3 {[%clk 0:02:58.1]} 6... e5 {[%clk 0:03:01.4]}
7. dxe5 {[%clk 0:02:58.1]} 7... dxe5 {[%clk 0:03:01.4]} 8. Qxd8 {[%clk
0:02:58.7]} 8... Rxd8 {[%clk 0:03:02.3]} 9. Be3 {[%clk 0:02:58.6]} 9... Re8
{[%clk 0:02:59.5]} 10. O-O-O {[%clk 0:02:57.7]} 10... c6 {[%clk 0:02:55.8]} 11.
c5 {[%clk 0:02:57.2]} 11... Be6 {[%clk 0:02:53.6]} 12. Ng5 {[%clk 0:02:56.2]}
12... Bc8 {[%clk 0:02:51.3]} 13. Bc4 {[%clk 0:02:54]} 13... Be6 {[%clk
0:02:37.5]} 14. Bxe6 {[%clk 0:02:40.4]} 14... fxe6 {[%clk 0:02:38.3]} 15. Rd6
{[%clk 0:02:40.5]} 15... Bh6 {[%clk 0:02:31.5]} 16. Nxe6 {[%clk 0:02:34.4]}
16... Bxe3+ {[%clk 0:02:31.1]} 17. fxe3 {[%clk 0:02:34.8]} 17... Na6 {[%clk
0:02:31.1]} 18. a3 {[%clk 0:02:20.9]} 18... Re7 {[%clk 0:02:22.1]} 19. b4 {[%clk
0:02:18.2]} 19... Ne8 {[%clk 0:02:13.6]} 20. Rd8 {[%clk 0:02:15.4]} 20... Rxd8
{[%clk 0:02:09.8]} 21. Nxd8 {[%clk 0:02:14.8]} 21... Rd7 {[%clk 0:01:58.3]} 22.
Rd1 {[%clk 0:02:13.5]} 22... Re7 {[%clk 0:01:53.1]} 23. Kc2 {[%clk 0:01:56]}
23... h5 {[%clk 0:01:50.7]} 24. h4 {[%clk 0:01:53.3]} 24... Nf6 {[%clk
0:01:49.6]} 25. Rd6 {[%clk 0:01:49.3]} 25... Kg7 {[%clk 0:01:40.7]} 26. Ne6+
{[%clk 0:01:41.1]} 26... Kh6 {[%clk 0:01:38.7]} 27. Ng5 {[%clk 0:01:36.3]} 27...
Ng4 {[%clk 0:01:35.6]} 28. Kd2 {[%clk 0:01:31.4]} 28... Nc7 {[%clk 0:01:35.3]}
29. Ke2 {[%clk 0:01:24.5]} 29... Ne8 {[%clk 0:01:32.8]} 30. Rd8 {[%clk
0:01:22.3]} 30... Kg7 {[%clk 0:01:30.1]} 31. a4 {[%clk 0:01:20.9]} 31... Nc7
{[%clk 0:01:26.4]} 32. b5 {[%clk 0:01:18.4]} 32... a6 {[%clk 0:01:19]} 33. bxc6
{[%clk 0:01:08.9]} 33... bxc6 {[%clk 0:01:18.3]} 34. Rd6 {[%clk 0:01:09.2]}
34... Ne8 {[%clk 0:01:02.2]} 35. Rxc6 {[%clk 0:01:08]} 35... Rc7 {[%clk
0:01:02.8]} 36. Rxc7+ {[%clk 0:01:07.2]} 36... Nxc7 {[%clk 0:01:03.7]} 37. Nd5
{[%clk 0:01:07.4]} 37... Nxd5 {[%clk 0:00:57.8]} 38. exd5 {[%clk 0:01:06.7]}
38... Kf6 {[%clk 0:00:58.7]} 39. d6 {[%clk 0:01:03.8]} 39... a5 {[%clk
0:00:53.2]} 40. c6 {[%clk 0:01:01.7]} 1-0

[Event "*** Titled Tuesday Blitz"]
[Site "Chess.com"]
[Date "2020.12.01"]
[Round "11"]
[White "KetiTsatsalashvili"]
[Black "MashaFromRussia"]
[Result "0-1"]
[WhiteElo "2326"]
[BlackElo "2425"]
[TimeControl "180+1"]
[EndTime "12:04:38 PST"]
[Termination "MashaFromRussia won by resignation"]

1. Nf3 {[%clk 0:03:00.9]} 1... Nf6 {[%clk 0:02:58.3]} 2. d4 {[%clk 0:03:00.1]}
2... g6 {[%clk 0:02:58.1]} 3. c4 {[%clk 0:02:58.6]} 3... Bg7 {[%clk 0:02:58.2]}
4. Nc3 {[%clk 0:02:57.2]} 4... O-O {[%clk 0:02:58.9]} 5. e4 {[%clk 0:02:56.9]}
5... d6 {[%clk 0:02:59.5]} 6. Be2 {[%clk 0:02:57]} 6... e5 {[%clk 0:02:55.4]} 7.
O-O {[%clk 0:02:57]} 7... Nc6 {[%clk 0:02:55.4]} 8. d5 {[%clk 0:02:57.5]} 8...
Ne7 {[%clk 0:02:55.8]} 9. Nd2 {[%clk 0:02:58.2]} 9... Nd7 {[%clk 0:02:55.8]} 10.
b4 {[%clk 0:02:57.2]} 10... f5 {[%clk 0:02:56.3]} 11. a4 {[%clk 0:02:55.8]}
11... Nf6 {[%clk 0:02:54.1]} 12. Ba3 {[%clk 0:02:54.2]} 12... fxe4 {[%clk
0:02:50.1]} 13. Ndxe4 {[%clk 0:02:53.9]} 13... Nf5 {[%clk 0:02:50.4]} 14. Bc1
{[%clk 0:02:49]} 14... Nd4 {[%clk 0:02:36.7]} 15. Be3 {[%clk 0:02:48.1]} 15...
Bf5 {[%clk 0:02:35.3]} 16. Bd3 {[%clk 0:02:47.2]} 16... Qd7 {[%clk 0:02:31.9]}
17. f3 {[%clk 0:02:45.4]} 17... Nxe4 {[%clk 0:02:23.1]} 18. Bxe4 {[%clk
0:02:40.1]} 18... Rf7 {[%clk 0:02:20.4]} 19. Qd3 {[%clk 0:02:35]} 19... Raf8
{[%clk 0:02:18.6]} 20. c5 {[%clk 0:02:27.2]} 20... h5 {[%clk 0:01:53.9]} 21. a5
{[%clk 0:02:18.8]} 21... h4 {[%clk 0:01:53.6]} 22. h3 {[%clk 0:02:16]} 22...
Bxh3 {[%clk 0:01:45.6]} 23. Bxg6 {[%clk 0:01:45.9]} 23... Rxf3 {[%clk
0:01:23.9]} 24. gxf3 {[%clk 0:01:26.7]} 24... Bxf1 {[%clk 0:01:17.1]} 25. Rxf1
{[%clk 0:01:24.3]} 25... Qh3 {[%clk 0:01:15.3]} 26. Bxd4 {[%clk 0:01:18.3]}
26... Qg3+ {[%clk 0:01:14.4]} 27. Kh1 {[%clk 0:01:18.5]} 27... Qh3+ {[%clk
0:00:42.8]} 28. Kg1 {[%clk 0:01:17.1]} 28... exd4 {[%clk 0:00:37.3]} 29. Ne4
{[%clk 0:01:12.3]} 29... Be5 {[%clk 0:00:37.3]} 30. Rf2 {[%clk 0:01:08.9]} 30...
Kh8 {[%clk 0:00:25.3]} 31. Bh5 {[%clk 0:01:01.3]} 31... Rg8+ {[%clk 0:00:23.9]}
32. Bg4 {[%clk 0:01:01.6]} 32... Rxg4+ {[%clk 0:00:24.1]} 33. fxg4 {[%clk
0:01:02.5]} 33... Qxd3 {[%clk 0:00:24.5]} 0-1

[Event "*** Titled Tuesday Blitz"]
[Site "Chess.com"]
[Date "2020.12.01"]
[Round "11"]
[White "ZenBull"]
[Black "stoleriu"]
[Result "0-1"]
[WhiteElo "2238"]
[BlackElo "2558"]
[TimeControl "180+1"]
[EndTime "12:04:43 PST"]
[Termination "stoleriu won by checkmate"]

1. Nf3 {[%clk 0:03:00.9]} 1... Nf6 {[%clk 0:02:59.6]} 2. c4 {[%clk 0:03:00.6]}
2... e6 {[%clk 0:02:57.9]} 3. g3 {[%clk 0:03:00.3]} 3... b6 {[%clk 0:02:56.3]}
4. Bg2 {[%clk 0:03:00.4]} 4... Bb7 {[%clk 0:02:57.2]} 5. d4 {[%clk 0:02:59.6]}
5... Bb4+ {[%clk 0:02:56.7]} 6. Bd2 {[%clk 0:02:59.4]} 6... Qe7 {[%clk
0:02:55.5]} 7. O-O {[%clk 0:02:53.6]} 7... Bxd2 {[%clk 0:02:54.8]} 8. Qxd2
{[%clk 0:02:51.4]} 8... O-O {[%clk 0:02:53.1]} 9. Nc3 {[%clk 0:02:48.2]} 9...
Ne4 {[%clk 0:02:51.8]} 10. Nxe4 {[%clk 0:02:48.2]} 10... Bxe4 {[%clk 0:02:52.7]}
11. Ne1 {[%clk 0:02:47.4]} 11... Bxg2 {[%clk 0:02:52.7]} 12. Nxg2 {[%clk
0:02:48.3]} 12... d6 {[%clk 0:02:53.4]} 13. Rac1 {[%clk 0:02:47.1]} 13... Nd7
{[%clk 0:02:53.3]} 14. e4 {[%clk 0:02:41.7]} 14... e5 {[%clk 0:02:51.7]} 15. d5
{[%clk 0:02:40.7]} 15... a5 {[%clk 0:02:49.8]} 16. Ne3 {[%clk 0:02:39.6]} 16...
Nc5 {[%clk 0:02:49.1]} 17. f3 {[%clk 0:02:33.1]} 17... g6 {[%clk 0:02:47.1]} 18.
Qc2 {[%clk 0:02:27.5]} 18... Qg5 {[%clk 0:02:46.1]} 19. Rce1 {[%clk 0:02:25.4]}
19... f5 {[%clk 0:02:44.3]} 20. exf5 {[%clk 0:02:19.3]} 20... gxf5 {[%clk
0:02:45.2]} 21. f4 {[%clk 0:02:12.3]} 21... exf4 {[%clk 0:02:43.5]} 22. Rxf4
{[%clk 0:02:10.2]} 22... Rae8 {[%clk 0:02:44]} 23. Ng2 {[%clk 0:02:07.3]} 23...
Rxe1+ {[%clk 0:02:36.7]} 24. Nxe1 {[%clk 0:02:07.3]} 24... Ne4 {[%clk
0:02:35.5]} 25. Nd3 {[%clk 0:01:57.5]} 25... Qf6 {[%clk 0:02:24.2]} 26. Kg2
{[%clk 0:01:45.7]} 26... Qd4 {[%clk 0:02:19.7]} 27. b3 {[%clk 0:01:38.8]} 27...
Qe3 {[%clk 0:02:15.5]} 28. Nf2 {[%clk 0:01:37]} 28... Nxf2 {[%clk 0:02:02.3]}
29. Qxf2 {[%clk 0:01:36.2]} 29... Qe5 {[%clk 0:02:02.9]} 30. g4 {[%clk
0:01:30.8]} 30... Re8 {[%clk 0:02:00.7]} 31. Rxf5 {[%clk 0:01:28.5]} 31... Qe4+
{[%clk 0:02:00.5]} 32. Kh3 {[%clk 0:01:17.8]} 32... Qd3+ {[%clk 0:01:49]} 33.
Rf3 {[%clk 0:01:14.6]} 33... Qg6 {[%clk 0:01:49]} 34. Qg3 {[%clk 0:01:09.8]}
34... Re2 {[%clk 0:01:44.2]} 35. Qf4 {[%clk 0:01:08.7]} 35... Qg7 {[%clk
0:01:22]} 36. a4 {[%clk 0:01:08.1]} 36... h5 {[%clk 0:01:14]} 37. g5 {[%clk
0:01:03.7]} 37... Qd7+ {[%clk 0:00:36.9]} 38. Kh4 {[%clk 0:00:53.6]} 38... Rxh2+
{[%clk 0:00:35.1]} 39. Kg3 {[%clk 0:00:52.2]} 39... Qh3# {[%clk 0:00:34.4]} 0-1

[Event "*** Titled Tuesday Blitz"]
[Site "Chess.com"]
[Date "2020.12.01"]
[Round "11"]
[White "vwnv7"]
[Black "queen_iryna"]
[Result "1-0"]
[WhiteElo "2422"]
[BlackElo "2317"]
[TimeControl "180+1"]
[EndTime "12:04:50 PST"]
[Termination "vwnv7 won by checkmate"]

1. c4 {[%clk 0:03:00.9]} 1... d6 {[%clk 0:02:59.1]} 2. Nc3 {[%clk 0:03:00.8]}
2... e5 {[%clk 0:02:59.2]} 3. g3 {[%clk 0:03:01.1]} 3... Nc6 {[%clk 0:02:59.3]}
4. Bg2 {[%clk 0:03:01.5]} 4... g6 {[%clk 0:02:59.6]} 5. e4 {[%clk 0:03:01.2]}
5... Bg7 {[%clk 0:02:59.8]} 6. Nge2 {[%clk 0:03:01.6]} 6... f5 {[%clk 0:03:00]}
7. d3 {[%clk 0:03:01.2]} 7... Nf6 {[%clk 0:02:59.7]} 8. Bg5 {[%clk 0:03:00]}
8... h6 {[%clk 0:02:58]} 9. Be3 {[%clk 0:03:00]} 9... O-O {[%clk 0:02:57.4]} 10.
h3 {[%clk 0:02:59.8]} 10... Be6 {[%clk 0:02:52.1]} 11. Qd2 {[%clk 0:02:59.9]}
11... Kh7 {[%clk 0:02:46.2]} 12. Nd5 {[%clk 0:02:58.6]} 12... f4 {[%clk
0:02:28.7]} 13. gxf4 {[%clk 0:02:56.4]} 13... Nh5 {[%clk 0:02:27.5]} 14. fxe5
{[%clk 0:02:38.3]} 14... Nxe5 {[%clk 0:02:23.9]} 15. f4 {[%clk 0:02:33.8]} 15...
Nc6 {[%clk 0:02:20.4]} 16. Bf3 {[%clk 0:02:13.8]} 16... Nf6 {[%clk 0:02:12.6]}
17. O-O-O {[%clk 0:02:07.7]} 17... a5 {[%clk 0:02:09]} 18. Rdg1 {[%clk
0:02:02.9]} 18... Nb4 {[%clk 0:02:05.2]} 19. Kb1 {[%clk 0:01:51.1]} 19... c6
{[%clk 0:02:01]} 20. Nxf6+ {[%clk 0:01:32.2]} 20... Qxf6 {[%clk 0:01:58.9]} 21.
f5 {[%clk 0:01:19.8]} 21... Bf7 {[%clk 0:01:34.3]} 22. Bd4 {[%clk 0:01:15.1]}
22... Qe7 {[%clk 0:01:24.3]} 23. fxg6+ {[%clk 0:01:10.5]} 23... Bxg6 {[%clk
0:01:24.2]} 24. Rxg6 {[%clk 0:01:09.3]} 24... Kxg6 {[%clk 0:01:04.5]} 25. Rg1+
{[%clk 0:01:08.4]} 25... Kh7 {[%clk 0:01:02]} 26. Rxg7+ {[%clk 0:01:04.9]} 26...
Qxg7 {[%clk 0:01:01.1]} 27. Bxg7 {[%clk 0:01:04.8]} 27... Kxg7 {[%clk 0:01:02]}
28. Nd4 {[%clk 0:01:01.9]} 28... Rf6 {[%clk 0:00:56.3]} 29. Nf5+ {[%clk
0:00:57.4]} 29... Kh7 {[%clk 0:00:56.4]} 30. a3 {[%clk 0:00:47.7]} 30... Na6
{[%clk 0:00:56.1]} 31. Qxa5 {[%clk 0:00:46.2]} 31... Rg8 {[%clk 0:00:50.7]} 32.
Qc3 {[%clk 0:00:43.1]} 32... Rfg6 {[%clk 0:00:43.7]} 33. Bh5 {[%clk 0:00:37.3]}
33... Rg1+ {[%clk 0:00:43.1]} 34. Ka2 {[%clk 0:00:37.7]} 34... Nc5 {[%clk
0:00:38.9]} 35. Qf6 {[%clk 0:00:37.5]} 35... Nxd3 {[%clk 0:00:31.1]} 36. Qxh6#
{[%clk 0:00:36.6]} 1-0